Cogmind - Beta 13 @@@ ROGUE MODE // 2024.04.07 @ 01:10:35 Player: opdo Result: Destroyed by H-61 Shepherd with Heavy Assault Cannon Performance ------------- Evolutions (2) 1000 Regions Visited (6) 1200 Robots Destroyed (26) 130 Value Destroyed (755) 755 Prototype IDs (1) 20 Alien Tech Used (0) 0 Bonus (0) 0 TOTAL SCORE: 3105 Bonus ------- None Cogmind --------- Core Integrity 0/550 Matter 261/300 Energy 160/160 System Corruption 0% Temperature Cool (0) Movement Walking (260) Ox2 Location -8/Materials Parts ------- > --- POWER (2) -------- Light Nuclear Core > --- PROPULSION (3) --- Aluminum Leg Aluminum Leg > --- UTILITY (4) ------ High-capacity Storage Unit Improved Signal Interpreter Improved Terrain Scanner Improved Targeting Computer > --- WEAPON (2) ------- Heavy Assault Rifle Improved Assault Rifle > --- INVENTORY (20) --- Deuterium Engine Light Nuclear Core Light Treads Light Treads Advanced Treads Aluminum Leg Aluminum Leg Aluminum Leg Terrain Scan Processor Improved Propulsion Shielding Light Armor Plating Light Armor Plating Improved Medium Laser Faulty Improved Medium Laser Improved Medium Laser Improved Assault Rifle Improved Assault Rifle Peak State ------------ > --- POWER ------------ Light Nuclear Core Light Nuclear Core > --- PROPULSION ------- Aluminum Leg Aluminum Leg Carbon-fiber Leg > --- UTILITY ---------- High-capacity Storage Unit Improved Signal Interpreter Improved Terrain Scanner Improved Targeting Computer > --- WEAPON ----------- Heavy Assault Rifle Improved Assault Rifle > --- INVENTORY -------- Deuterium Engine Light Nuclear Core Light Treads Light Treads Advanced Treads Aluminum Leg Aluminum Leg Aluminum Leg Terrain Scan Processor Improved Propulsion Shielding Light Armor Plating Light Armor Plating Improved Medium Laser Improved Assault Rifle Improved Assault Rifle [Rating: 28] Favorites ----------- Power Light Ion Engine Engine Light Ion Engine Power Core Light Nuclear Core Propulsion Aluminum Leg Treads Advanced Treads Leg Aluminum Leg Hover Unit Airjet Flight Unit Flight Unit Utility Improved Targeting Computer Device Seismic Detector Storage Small Storage Unit Processor Improved Targeting Computer Weapon Heavy Assault Rifle Energy Gun Particle Gun Ballistic Gun Heavy Assault Rifle Slashing Weapon Axe Build | -11 -10 -9 -9 -9 -8 -8 ------- Run | Yrd Mat Mat Min Exi Min Mat Slots Evolved 4 | . . 2 . . . 2 Power 1 | . . . . . . 1 Propulsion 1 | . . . . . . 1 Utility 2 | . . 2 . . . . Weapon . | . . . . . . . Parts Attached 43 | 6 1 8 . . 6 22 Power 6 | 1 . 2 . . 1 2 Engine 4 | 1 . 2 . . 1 . Core 2 | . . . . . . 2 Reactor . | . . . . . . . Propulsion 15 | 2 . 3 . . 3 7 Treads 1 | . . . . . . 1 Leg 11 | 2 . 3 . . 1 5 Wheel . | . . . . . . . Hover 1 | . . . . . . 1 Flight 2 | . . . . . 2 . Utility 13 | 1 1 2 . . 2 7 Device 2 | . 1 . . . . 1 Storage 8 | 1 . . . . 2 5 Processor 3 | . . 2 . . . 1 Hackware . | . . . . . . . Protection . | . . . . . . . Artifact . | . . . . . . . Weapon 9 | 2 . 1 . . . 6 Energy Gun 1 | . . . . . . 1 Energy Cannon . | . . . . . . . Ballistic Gun 7 | 2 . 1 . . . 4 Ballistic Cannon . | . . . . . . . Launcher . | . . . . . . . Special Weapon . | . . . . . . . Impact Weapon . | . . . . . . . Slashing Weapon 1 | . . . . . . 1 Piercing Weapon . | . . . . . . . Special Melee Weapon . | . . . . . . . Unidentified Prototypes 1 | . . . . . . 1 Parts Lost 15 | . . . . . 3 12 Power 3 | . . . . . 1 2 Propulsion 7 | . . . . . 2 5 Utility 1 | . . . . . . 1 Weapon 4 | . . . . . . 4 Highest Loss Streak 9 | . . . . . 3 9 To Critical Strikes . | . . . . . . . Average Slot Usage (%) 94 | . 98 90 100 100 97 86 Engine 7 | . 14 9 11 11 9 1 Core 4 | . . . . . . 12 Leg 20 | . 28 20 22 22 18 19 Flight 1 | . . . . . 2 2 Device 9 | . 12 11 11 11 11 7 Storage 10 | . 14 11 11 11 11 9 Processor 19 | . . 17 22 22 22 18 Energy Gun 1 | . . . . . . 3 Ballistic Gun 18 | . 28 19 22 22 22 10 Naked Turns . | . . . . . . . Heaviest Build 57 | 11 12 13 13 13 48 57 Greatest Support 35 | 20 20 20 20 20 20 35 Greatest Overweight (x) 4 | . . 2 . . 4 2 Average Overweight (x) . | . . . . . 1 . Largest Inventory Capacity 20 | 8 8 8 8 8 20 20 Average Capacity 12 | 7 8 8 8 8 15 16 Most Carried 17 | 4 5 8 8 8 12 17 Average Carried 8 | 1 2 7 8 8 9 10 Final Capacity 20 | 8 8 8 8 8 8 20 Final Carried 17 | 3 5 8 8 8 8 17 Class Distribution -------------------- 75% | Mutant 24% | Scavenger-Mutant Dominant Class ---------------- Mutant | -10/Materials Mutant | -9/Materials Mutant | -9/Mines Mutant | -9/Exiles Mutant | -8/Mines Scavenger-Mutant | -8/Materials Resources | -11 -10 -9 -9 -9 -8 -8 ----------- Run | Yrd Mat Mat Min Exi Min Mat Matter Collected 784 | 122 40 92 . 184 46 300 Remotely . | . . . . . . . Salvage Created 983 | 75 40 161 . . 46 661 Parts 68 | 8 3 16 . . 5 36 Haulers Intercepted 2 | . . 1 . . . 1 Recyclers Shooed 1 | 1 . . . . . . Parts Field Recycled . | . . . . . . . Retrieved Matter . | . . . . . . . Parts Self-Destructed . | . . . . . . . Prevented . | . . . . . . . Kills | -11 -10 -9 -9 -9 -8 -8 ------- Run | Yrd Mat Mat Min Exi Min Mat Combat Hostiles Destroyed 21 | . 1 5 . . 3 12 Melee 2 | . . . . . . 2 Guns 19 | . 1 5 . . 3 10 Classes Destroyed 7 | 2 1 3 . . . 1 Tunneler 1 | 1 . . . . . . Hauler 2 | . . 1 . . . 1 Recycler 1 | 1 . . . . . . Watcher 1 | . . . . . . 1 Swarmer 7 | . . 4 . . 3 . Grunt 10 | . 1 . . . . 9 Sentry 4 | . . 1 . . . 3 Best Kill Streak 8 | 2 1 5 . . 3 8 Combat Bots Only 8 | . 1 4 . . 3 8 Max Kills in Single Turn 1 | 1 1 1 . . 1 1 Gunslinging . | . . . . . . . Exploded . | . . . . . . . Melee 1 | . . . . . . 1 Uniques/NPCs Destroyed . | . . . . . . . Combat | -11 -10 -9 -9 -9 -8 -8 -------- Run | Yrd Mat Mat Min Exi Min Mat Hostile Shots Fired 187 | . 2 18 . . 53 114 Missed 47 | . 1 3 . . 12 31 Damage Taken 1991 | . 10 132 . . 311 1538 Core 629 | . . 29 . . 50 550 Absorbed by Shields . | . . . . . . . Core Remaining (%) 93 | 100 100 . . . 80 . Volleys Fired 90 | 7 6 9 . . 12 56 Largest 2 | 2 2 2 . . 2 2 Hottest 65 | 40 40 43 . . 43 65 Shots Fired 142 | 14 12 18 . . 24 74 Gun 142 | 14 12 18 . . 24 74 Cannon . | . . . . . . . Launcher . | . . . . . . . Special . | . . . . . . . Kinetic 106 | 14 12 18 . . 24 38 Thermal 36 | . . . . . . 36 Explosive . | . . . . . . . Electromagnetic . | . . . . . . . Robot Hit Streak 17 | 5 4 7 . . 3 17 Robot Miss Streak 3 | 2 3 2 . . 3 3 Penetration Max . | . . . . . . . Secondary Targets 3 | . . 2 . . . 1 Max Gunslinging Chain 1 | . . 1 . . . 1 Shots Hit Robots 113 | 8 7 13 . . 12 73 Core Hits 49 | 4 3 7 . . 3 32 Critical Kills 2 | . . 1 . . . 1 Critical Parts Destroyed . | . . . . . . . Critical Strikes 6 | . . 1 . . . 5 Burn 3 | . . . . . . 3 Destroy 2 | . . 1 . . . 1 Sever 1 | . . . . . . 1 Melee Attacks 12 | . . . . . . 12 Impact . | . . . . . . . Slashing 12 | . . . . . . 12 Piercing . | . . . . . . . Sneak Attacks . | . . . . . . . Combat Hostiles . | . . . . . . . Follow-up Attacks . | . . . . . . . Damage Inflicted 1878 | 79 66 145 . . 130 1458 Guns 1461 | 79 66 145 . . 130 1041 Cannons . | . . . . . . . Explosions . | . . . . . . . Melee 411 | . . . . . . 411 Ramming 6 | . . . . . . 6 Kinetic 1027 | 79 66 145 . . 130 607 Thermal 434 | . . . . . . 434 Explosive . | . . . . . . . Electromagnetic . | . . . . . . . Impact . | . . . . . . . Slashing 411 | . . . . . . 411 Piercing . | . . . . . . . Highest Corruption . | . . . . . . . Average Corruption . | . . . . . . . Corruption Purged . | . . . . . . . Corruption Blocked . | . . . . . . . Overload Shots . | . . . . . . . Overflow Damage 47 | . . . . . . 47 Projectiles . | . . . . . . . Explosions . | . . . . . . . Melee 47 | . . . . . . 47 Knockbacks . | . . . . . . . Impact . | . . . . . . . Kinetic . | . . . . . . . Secondary . | . . . . . . . Self-Inflicted Damage . | . . . . . . . Shots . | . . . . . . . Rammed . | . . . . . . . Targets Rammed 1 | . . . . . . 1 Kicked 1 | . . . . . . 1 Crushed . | . . . . . . . Highest Temperature 284 | . 6 . . . . 284 Average Temperature 64 | . 6 . . . . 66 Received Heat Transfer 654 | . 6 . . . . 648 Siege Activations . | . . . . . . . Robots Corrupted . | . . . . . . . Combat Hostiles . | . . . . . . . Parts Fried . | . . . . . . . Impact Corruptions . | . . . . . . . Robots Melted . | . . . . . . . Combat Hostiles . | . . . . . . . Parts Melted 5 | . . . . . . 5 Heat Transferred 1184 | . . . . . . 1184 Parts Sabotaged . | . . . . . . . Parts Stolen . | . . . . . . . Parts Stripped . | . . . . . . . Power Chain Reactions . | . . . . . . . Alert | -11 -10 -9 -9 -9 -8 -8 ------- Run | Yrd Mat Mat Min Exi Min Mat Peak Influence 276 | 10 66 180 70 . 45 276 Initial 70 | . 6 27 70 . . 17 Average 72 | 4 26 70 70 . 9 131 Maximum Alert Level 1 | . . . . . . 1 Low Security (%) 89 | 100 100 100 100 . 100 75 Level 1 10 | . . . . . . 24 Level 2 . | . . . . . . . Level 3 . | . . . . . . . Level 4 . | . . . . . . . Level 5 . | . . . . . . . High Security . | . . . . . . . Max Security . | . . . . . . . Squads Dispatched 3 | . 1 . . . . 2 Investigation 1 | . 1 . . . . . Extermination . | . . . . . . . Reinforcement 2 | . . . . . . 2 Assault . | . . . . . . . Garrison . | . . . . . . . Intercept . | . . . . . . . Searches Triggered . | . . . . . . . Construction Impeded . | . . . . . . . Haulers Reinforced . | . . . . . . . Active Scanning Responses . | . . . . . . . Cargo Convoy Interrupts . | . . . . . . . Stealth | -11 -10 -9 -9 -9 -8 -8 --------- Run | Yrd Mat Mat Min Exi Min Mat Distress Signals 3 | . . . . . . 3 Communications Jammed . | . . . . . . . Distress Signals . | . . . . . . . Times Spotted 35 | . 3 7 . . 5 20 Peak Tracking Total 7 | . 3 5 . . 4 7 Tactical Retreats 2 | . . . . . 1 1 Traps | -11 -10 -9 -9 -9 -8 -8 ------- Run | Yrd Mat Mat Min Exi Min Mat Traps Triggered 4 | . 1 3 . . . . Indirectly . | . . . . . . . Trap Hack Attempts . | . . . . . . . Triggered . | . . . . . . . Disarmed . | . . . . . . . Reprogrammed . | . . . . . . . Reused . | . . . . . . . Traps Extracted . | . . . . . . . Installed . | . . . . . . . Triggered . | . . . . . . . Machines | -11 -10 -9 -9 -9 -8 -8 ---------- Run | Yrd Mat Mat Min Exi Min Mat Machines Disabled . | . . . . . . . Max in Single Turn . | . . . . . . . Machines Repaired . | . . . . . . . Machines Dismantled . | . . . . . . . Machines Sabotaged . | . . . . . . . Overloaded Fab Kills . | . . . . . . . Hacking | -11 -10 -9 -9 -9 -8 -8 --------- Run | Yrd Mat Mat Min Exi Min Mat Machines Accessed 10 | . 2 3 . . . 5 Terminals 8 | . 2 3 . . . 3 Fabricators . | . . . . . . . Repair Stations . | . . . . . . . Recycling Units . | . . . . . . . Scanalyzers 2 | . . . . . . 2 Garrison Access . | . . . . . . . Total Hacks 28 | . 6 8 . . . 14 Successful 14 | . 3 4 . . . 7 Failed 14 | . 3 4 . . . 7 Catastrophic 1 | . . . . . . 1 Database Lockouts . | . . . . . . . Manual 21 | . 6 5 . 1 . 9 Terminals 23 | . 6 8 . . . 9 Fabricators . | . . . . . . . Repair Stations . | . . . . . . . Recycling Units . | . . . . . . . Scanalyzers 5 | . . . . . . 5 Garrison Access . | . . . . . . . Terminal Hacks 4 | . . 2 . . . 2 Robot Analysis 1 | . . 1 . . . . Recall Investigation 1 | . . . . . . 1 Zone Layout 2 | . . 1 . . . 1 Fabricator Hacks . | . . . . . . . Repair Station Hacks . | . . . . . . . Recycling Unit Hacks . | . . . . . . . Scanalyzer 3 | . . . . . . 3 Insert Component 2 | . . . . . . 2 Analyze 1 | . . . . . . 1 Garrison Access Hacks . | . . . . . . . Unauthorized Hacks 7 | . 3 2 . . . 2 Terminals 7 | . 3 2 . . . 2 Botnet 4 | . 2 1 . . . 1 Operators 3 | . 1 1 . . . 1 Fabricators . | . . . . . . . Repair Stations . | . . . . . . . Recycling Units . | . . . . . . . Scanalyzers . | . . . . . . . Garrison Access . | . . . . . . . Data Cores Recovered . | . . . . . . . Used . | . . . . . . . Hacking Detections 9 | . 2 3 . . . 4 Full Trace Events 1 | . . . . . . 1 Feedback Events . | . . . . . . . Feedback Blocked . | . . . . . . . Robot Schematics Acquired . | . . . . . . . Robots Built . | . . . . . . . Authchips . | . . . . . . . Time . | . . . . . . . Total Robot Build Rating . | . . . . . . . Part Schematics Acquired . | . . . . . . . Parts Built . | . . . . . . . Authchips . | . . . . . . . Time . | . . . . . . . Total Part Build Rating . | . . . . . . . Parts Repaired . | . . . . . . . Time . | . . . . . . . Parts Recycled . | . . . . . . . Recycled Matter . | . . . . . . . Retrieved Matter . | . . . . . . . Retrieved Components . | . . . . . . . Parts Scanalyzed 1 | . . . . . . 1 Part Schematics Acquired . | . . . . . . . Parts Damaged . | . . . . . . . Bothacking | -11 -10 -9 -9 -9 -8 -8 ------------ Run | Yrd Mat Mat Min Exi Min Mat Used RIF Installer . | . . . . . . . Robots Hacked . | . . . . . . . Non-combat . | . . . . . . . Combat . | . . . . . . . Robot Hacks Applied . | . . . . . . . Relay Couplers Released . | . . . . . . . Fabnet Peak Effective % . | . . . . . . . Robots Rewired . | . . . . . . . Allies Hacked . | . . . . . . . Hacks Repelled . | . . . . . . . Allies | -11 -10 -9 -9 -9 -8 -8 -------- Run | Yrd Mat Mat Min Exi Min Mat Total Allies . | . . . . . . . Largest Group . | . . . . . . . Highest-Rated Group . | . . . . . . . Highest-Rated Ally . | . . . . . . . Total Orders . | . . . . . . . Ally Attacks . | . . . . . . . Total Damage . | . . . . . . . Kills . | . . . . . . . Allies Corrupted . | . . . . . . . Allies Melted . | . . . . . . . Intel | -11 -10 -9 -9 -9 -8 -8 ------- Run | Yrd Mat Mat Min Exi Min Mat Robot Analysis Total 1 | . . 1 . . . . Derelict Logs Recovered . | . . . . . . . Drone Launches . | . . . . . . . Drone Recoveries . | . . . . . . . Exploration | -11 -10 -9 -9 -9 -8 -8 ------------- Run | Yrd Mat Mat Min Exi Min Mat Turns Passed 2390 | 75 115 208 23 633 562 774 Spaces Moved 1394 | 38 79 125 20 528 293 311 Core 11 | 7 . 4 . . . . Treads 6 | . . . . . . 6 Legs 1255 | 31 79 121 20 528 231 245 Wheels . | . . . . . . . Hover 3 | . . . . . . 3 Flight 119 | . . . . . 62 57 Fastest Speed 50 | 50 120 120 120 120 117 60 Average Speed 143 | 107 120 120 120 120 175 172 Slowest Speed 400 | 120 120 150 120 120 400 305 Overloaded Moves . | . . . . . . . Propulsion Burnouts . | . . . . . . . Robots Hopped . | . . . . . . . Cave-ins Triggered . | . . . . . . . Exploration Rate (%) 33 | 3 20 20 8 90 71 24 Regions Visited 6 Branch Regions 3 Pre-discovered Areas . | . . . . . . . Known Exits Taken 4 | . . 1 1 1 1 . Unknown Exits Taken 2 | 1 1 . . . . . Scrap Searched . | . . . . . . . Spaces Dug . | . . . . . . . Terrain Destroyed . | . . . . . . . Melee . | . . . . . . . Projectile . | . . . . . . . AOE . | . . . . . . . Terrain Rammed . | . . . . . . . Walls Destroyed . | . . . . . . . Machines Disabled . | . . . . . . . Actions | -11 -10 -9 -9 -9 -8 -8 --------- Run | Yrd Mat Mat Min Exi Min Mat Total 1631 | 59 88 167 19 527 318 453 Wait 30 | . . 11 . . . 19 Move 1388 | 37 78 124 19 527 292 311 Hop . | . . . . . . . Pick Up 58 | 9 3 13 . . 6 27 Fast Attach . | . . . . . . . Attach 30 | 6 1 8 . . 3 12 Detach . | . . . . . . . Swap 13 | . . . . . 3 10 Drop 9 | . . 2 . . 2 5 Fire 90 | 7 6 9 . . 12 56 Melee 12 | . . . . . . 12 Ram . | . . . . . . . Kick 1 | . . . . . . 1 Crush . | . . . . . . . Escape Stasis . | . . . . . . . Rewire . | . . . . . . . Trap . | . . . . . . . Miscellaneous . | . . . . . . . Route ------- -11/Scrapyard -10/Materials -9/Materials -9/Mines -9/Exiles (discovered 2 exits: *Min x2) -8/Mines -8/Materials History --------- Turn | Location | Event 21 | -11/Scrapyard | Discovered new exit (range 15) 76 | -11/Scrapyard | Entered Materials 160 | -10/Materials | Discovered new exit (range 15) 191 | -10/Materials | Entered another Materials area 191 | -9/Materials | Evolved 2 slots: Utility x2 337 | -9/Materials | Build established: Mutant 380 | -9/Materials | Discovered new exit (range 13) 397 | -9/Materials | Identified exit to Mines 399 | -9/Materials | Entered Mines 416 | -9/Mines | Deemed a non-threat by the Exiles lab entrance 417 | -9/Mines | Discovered new exit (range 5) 421 | -9/Mines | Identified exit to Exiles 422 | -9/Mines | Entered Exiles 440 | -9/Exiles | Discovered new exit (range 15) 455 | -9/Exiles | Met 8R-AWN 469 | -9/Exiles | Met EX-HEX 564 | -9/Exiles | Met EX-DEC 585 | -9/Exiles | Visited The Gauntlet 841 | -9/Exiles | Met EX-BIN 1037 | -9/Exiles | Discovered new exit (range 14) 1054 | -9/Exiles | Identified exit to Mines 1055 | -9/Exiles | Entered Mines 1542 | -8/Mines | Lost 3 parts (1p2n) 1601 | -8/Mines | Discovered new exit (range 10) 1610 | -8/Mines | Identified exit to Materials 1617 | -8/Mines | Entered Materials 1617 | -8/Materials | Evolved 2 slots: Power x1, Propulsion x1 1802 | -8/Materials | Core integrity fell below 50% 1813 | -8/Materials | Lost 9 parts (1p3n1u4w) 1835 | -8/Materials | Destroyed 8 combat bots 2117 | -8/Materials | Build established: Scavenger-Mutant 2390 | -8/Materials | Core integrity fell below 20% 2391 | -8/Materials | Destroyed by H-61 Shepherd with Heavy Assault Cannon Last Messages --------------- 02365_ Acquired 3 matter. 02365_ Y-45 Defender destroyed. 02369_ K-01 Serf collects debris. 02370_ Acquired Prototype Energy Gun. 02373_ K-01 Serf collects debris. 02375_ Acquired Prototype Energy Gun. 02378_ K-01 Serf collects debris. 02379_ H-61 Shepherd calls for reinforcements. 02379_ ALERT: Hostile activity reported, dispatching reinforcements to area. 02382_ K-01 Serf collects debris. 02385_ Carbon-fiber Leg destroyed. 02386_ R-06 Scavenger collects Heat Sink. 02386_ K-01 Serf collects debris. 02387_ Penetrated by Slug. 02387_ Lgt. Nuclear Core destroyed. 02387_ Knocked back. 02389_ U-05 Engineer builds a Wall. 02390_ R-06 Scavenger collects Lgt. Armor Plating. Map ----- +----------------------------------------------------+ | | | | | ?????????????????????????????#???????????????????? | | ?????????????????????????????????????????????????# | | ?????????????????#????##########?????????????????? | | ??????????????????????# """" #??????#???#?#???#? | | ??????????????????????# ""S"" #?????????????????? | | ??????????????????????# "" "" #?????#?#??#??#?#?? | | ?????????????#?????? ## #?????#??#????##??# | | ??????????????????????# ##??#???#?##????#?# | | ???????????????? ?????# """ #???#???#?????#???? | | ??????????????????"???# """ #???############### | | ??????????????????????# """ #???# # """ """ | | ??????????????????????# ##### T # """ """ | | ??????????? ###+########+#### * # # """ """ | | ??????????? + # o | | ??????????? ### ! # # | | ??????????? r #?## ## # ""T"" | | ??????????? ### ######H####### ## * # """"" | | ????????????????? ??# [%[ # ## # | | ??????????#?????????# # ## ########## | | ????????????#???????# ! # ########## ] | | ????????????????????# [[[ # + *** | | ????????????????????# [ ! ############ ** | | ?????????????#???#??# % #???????#?## * | | ??????????????????#?# % @ % #??#??#??### | | ??????????????????#?##;##########???#??????# | | ????????????????????# ?? ??????##?????########### | | ????????????????????# ???? ?? ?????????# # | | ????????????????????#??????????????????# """ "" # | | ????????????????????????????? ??????#??# """ """ # | | ???????????????????#???????????#?#?????# """ S" + | | ?????????????????##???? ??????#????#?## ! [ %# | | ??????????????????????????????#????#??#* = # | | ????????????????#??????????? ??????#??## # | | ????????????????????????????#????????#?# # | | ????????????????????????????????????##?########### | | ?????????????????????? ??????????#?????????# | | ??????????????????????????????????????#????# | | ???????????????????????????????????????##??# | | ??????????????????????????????????????????## | | ??????????????????????????????????????????## | | ????????????????????????????????????????????? ???? | | ???????????????????????????????????? ????????????? | | ?????????????????????????????????????? ??????????# | | ????????????????????????????????????????????? ???? | | ????????????????????????????????????????? ???????? | | ??????????????????????????????????????????? ?????? | | ???????????????????????????????????????? ????????? | | ?????????????????????????????????????????????????? | +----------------------------------------------------+ Best States ------------- Heat Dissipation 31 Energy Generation 23 Energy Capacity 220 Matter Stores 300 Matter Capacity 300 Sight Range 16 Terrain Scan Range 16 Terrain Scan Density 10 Evasion (%) 55 Targeting Accuracy 6 Recoil Reduction 1 Item Schematics ----------------- None Robot Schematics ------------------ None Fabricated ------------ Nothing Alien Tech Used ----------------- None Achievements -------------- None Challenges ------------ None Game ------ Seed StructuralSpikedRail Manual? 0 Play Time 00:16:48 Cumulative 28.4 hours Start 2024.04.07 @ 00:54:53 End 2024.04.07 @ 01:10:35 Sessions 1 Manual Loads 0 Difficulty Rogue Special Mode None Game No. 78 Rogue 76 Adventurer 2 Explorer 0 Win Type - Total 0 Types 0/0/0/0/0/0/0/0/0 Lore% 27 Gallery% 38 Achievement% 30 Wizard Run 0 Options --------- Layout 1 ASCII 0 Keyboard 0 Movement Arrows Keybinds 0 Fullscreen 2 Font 24/Smallcaps Map View 50x35 Zoom Use 0% Tactical HUD 1 Map Filters NONE Filters NONE Steam 1 RUN: 8e1e7c11-bcc2-49db-b8b1-d36b5971df97